{"text_format":"1","workbook":"xlsx","n_sheets":9,"sheets":["Disclaimer","Cortec","Configurator","DATABASE","Date Drivers","Master Text","Routing","BOM","Documents"],"not_rendered":{"charts":0,"images":0,"macros":1,"external_links":0,"defined_names":1,"comments":0,"pivot_tables":0},"unopened":[],"bounds":{"document_bytes":16777216,"sheet_cells":100000,"rows_first":2000,"rows_last":500,"rows_between":2000,"halvings":0,"cell_chars":16384,"cell_head_chars":4096},"cells_cut":0,"cells_raw":0,"read":"whole","date_system":"1900"}

{"sheet":"Disclaimer","index":0,"n_rows":6,"n_cols":2,"rows_kept":6,"cut":false,"hidden":false,"merged":[[2,1,2,9],[3,1,4,9],[5,1,7,9]]}
["THIS PRODUCT IS NOW OBSOLETE"]
[]
[null,"Our policy is one of continuous development. Accordingly the design of our products may change at any time. "]
[null,"Whilst every effort is made to produce up to date literature, this document should only be regarded as a guide and is intended for information purposes only."]
[]
[null,"Its contents do not constitute an offer for sale or advice on the application of any product referred to in it. We cannot be held responsible for any reliance on any decisions taken on its contents without specific advice."]

{"sheet":"Cortec","index":1,"n_rows":40,"n_cols":11,"rows_kept":40,"cut":false,"hidden":false,"merged":[]}
["THIS PRODUCT IS NOW OBSOLETE"]
["Translay 'S' Differential Feeder and Transformer Feeder Protection Device  MBCI02"]
["To enable only current variants to be offered, please specify ACTUAL or REQUIRED delivery date here (AFTER 01/01/50)"]
[null,"Digit #","1 - 4",5,6,7,8,9,10,"11 - 14",15]
["Variants",null,"Order No."]
["MBCI       ","Translays \"S\" Differential Current Operated Instantaneous Relay","MBCI","0",2]
[]
["Type of Relay:"]
["Pilot Voltage Limited by Zener (Rented)",null,null,null,2]
[]
["Case design:"]
["Flush mounted, size 6 (yellow case)",null,null,null,null,"F",1]
["Flush mounted, size 6  ( blue case)",null,null,null,null,"N",1]
["Flush mounted, size 6  ( grey case)",null,null,null,null,"V",1]
["Frequency Rating:"]
["50 Hz",null,null,null,null,null,null,"A"]
["60 Hz",null,null,null,null,null,null,"B"]
[]
["Current Rating (In):"]
["1A*",null,null,null,null,null,null,null,"B"]
["2A",null,null,null,null,null,null,null,"C"]
["5A*",null,null,null,null,null,null,null,"D"]
[]
["Auxiliary Supply (Vx)"]
["24 - 27 Vdc",null,null,null,null,null,null,null,null,"0011"]
["30 - 34 Vdc",null,null,null,null,null,null,null,null,"0261"]
["48 - 54 Vdc",null,null,null,null,null,null,null,null,"0511"]
["110 - 125 Vdc",null,null,null,null,null,null,null,null,"0761"]
["Non-Standard Version for Australia only   110 - 125 Vdc ",null,null,null,null,null,null,null,null,9001]
["Non-Standard Version for Australia only   48 - 54Vdc (1 A only)* or 110 - 125 Vdc (5 A only)*",null,null,null,null,null,null,null,null,9002]
["Non-Standard Version for Australia only   48 - 54Vdc (5 A only)",null,null,null,null,null,null,null,null,9003]
["Issue:",null,"(A to Z)"]
["See Model List (Factory Defined)"]
[]
["Optional Extras (to be ordered separately)"]
[]
["Pilot Isolation Transformer with Filter; HN0068001 - pre 15/09/96 ( NON EMC) or "]
[null,"                                              HN0068002 - 16/09/96 onwards (EMC)"]
["Pilot Isolation Transformer without Filter,  ZC0244002"]
["Pilot Supervision Isolation Transformer.    ZC0243003"]

{"sheet":"Configurator","index":2,"n_rows":23,"n_cols":11,"rows_kept":23,"cut":false,"hidden":false,"merged":[[8,9,16,9]]}
["THIS PRODUCT IS NOW OBSOLETE"]
["Translay 'S' Differential Feeder and Transformer Feeder Protection Device  MBCI02"]
["To enable only current variants to be offered, please specify ACTUAL or REQUIRED delivery date here (AFTER 01/01/50)"]
[null,null,"Format = dd/mm/yy (where d=day, m=month, y=year)"]
["Digit #",null,"1 to 4",5,6,7,8,9,10,"11 - 14",15]
["Variants",null,"MBCI",0,{"$f":"E7","v":2},{"$f":"F11","v":"V"},1,{"$f":"H13","v":"A"},{"$f":"I15","v":"B"},{"$f":"J9","v":"0011"},{"$f":"K18","v":"B"}]
["Pilot Voltage Limited by Zener (Rented)",null,null,null,2]
["Standard or Special Version:"]
[null,null,null,null,null,null,null,null,null,{"$f":"VLOOKUP(DATABASE!$B$28,DATABASE!$C$28:$D$75,2)","v":"0011"}]
["Case design:"]
[null,null,null,null,null,{"$f":"VLOOKUP(DATABASE!$B$3,DATABASE!$A$4:$C$5,3)","v":"V"}]
["Frequency Rating:"]
[null,null,null,null,null,null,null,{"$f":"VLOOKUP(DATABASE!$B$6,DATABASE!$A$7:$C$8,3)","v":"A"}]
["Current Rating (In):"]
[null,null,null,null,null,null,null,null,{"$f":"VLOOKUP(DATABASE!$B$10,DATABASE!$A$11:$C$13,3)","v":"B"}]
["Auxiliary Supply (Vx)"]
[]
["Issue:",null,null,null,null,null,null,null,null,null,{"$f":"HLOOKUP('Date Drivers'!$B$1,'Date Drivers'!$C$1:$H$99,38)","v":"B"}]
["Optional Extras (to be ordered separately)"]
[]
["Pilot Isolation Transformer with Filter",null,{"$f":"VLOOKUP(DATABASE!$B$77,DATABASE!$A$78:$B$79,2)","v":"Post 16/09/96 (EMC)"},null,null,null,null,null,null,{"$f":"VLOOKUP(DATABASE!$B$77,DATABASE!$A$78:$C$79,3)","v":"HN0068002"}]
["Pilot Isolation Transformer without Filter,                   ZC0244002"]
["Pilot Supervision Isolation Transformer.                     ZC0243003"]

{"sheet":"DATABASE","index":3,"n_rows":79,"n_cols":26,"rows_kept":79,"cut":false,"hidden":true,"merged":[]}
[]
[]
[null,1]
[1,{"$f":"HLOOKUP('Date Drivers'!$B$1,'Date Drivers'!$C$1:$H$99,8)","v":"Midos Size6 (Grey/Grey) Case"},{"$f":"HLOOKUP('Date Drivers'!$B$1,'Date Drivers'!$C$1:$H$99,10)","v":"V"}]
[2,{"$f":"HLOOKUP('Date Drivers'!$B$1,'Date Drivers'!$C$1:$H$99,9)","v":" "},{"$f":"HLOOKUP('Date Drivers'!$B$1,'Date Drivers'!$C$1:$H$99,11)","v":"V"}]
[null,1]
[1,{"$f":"VLOOKUP($B$20,$A$21:$L$22,4)","v":"50 Hz"},{"$f":"VLOOKUP($B$20,$A$21:$Q$22,13)","v":"A"}]
[2,{"$f":"VLOOKUP($B$20,$A$21:$L$22,5)","v":"60 Hz"},{"$f":"VLOOKUP($B$20,$A$21:$Q$22,14)","v":"B"}]
[]
[null,1]
[1,{"$f":"VLOOKUP($B$20,$A$21:$L$22,6)","v":"1A"},{"$f":"VLOOKUP($B$20,$A$21:$Q$22,15)","v":"B"},null," 12.5 Ohms","Assemble & Wire (1 Amp)","122.6 min"]
[2,{"$f":"VLOOKUP($B$20,$A$21:$L$22,7)","v":"2A"},{"$f":"VLOOKUP($B$20,$A$21:$Q$22,16)","v":"C"},null," 1.95 Ohms","Assemble & Wire (2 Amp)","122.6 min"]
[3,{"$f":"VLOOKUP($B$20,$A$21:$L$22,8)","v":"5A"},{"$f":"VLOOKUP($B$20,$A$21:$Q$22,17)","v":"D"},null," 0.48 Ohms","Assemble & Wire (5 Amp)","118.0 min"]
[null,1]
[1,{"$f":"VLOOKUP($B$20,$A$21:$L$22,9)","v":"24 - 27 Vdc"}]
[2,{"$f":"VLOOKUP($B$20,$A$21:$L$22,10)","v":"30 - 34 Vdc"}]
[3,{"$f":"VLOOKUP($B$20,$A$21:$L$22,11)","v":"48 - 54 Vdc"}]
[4,{"$f":"VLOOKUP($B$20,$A$21:$L$22,12)","v":"110 - 125 Vdc"}]
[]
[null,1]
[1,{"$f":"HLOOKUP('Date Drivers'!$B$1,'Date Drivers'!$C$1:$H$99,31)","v":"Standard"},{"$f":"HLOOKUP('Date Drivers'!$B$1,'Date Drivers'!$C$1:$H$99,33)","v":1},{"$f":"HLOOKUP('Date Drivers'!$B$1,'Date Drivers'!$C$1:$H$47,13)","v":"50 Hz"},{"$f":"HLOOKUP('Date Drivers'!$B$1,'Date Drivers'!$C$1:$H$47,14)","v":"60 Hz"},{"$f":"HLOOKUP('Date Drivers'!$B$1,'Date Drivers'!$C$1:$H$47,18)","v":"1A"},{"$f":"HLOOKUP('Date Drivers'!$B$1,'Date Drivers'!$C$1:$H$47,19)","v":"2A"},{"$f":"HLOOKUP('Date Drivers'!$B$1,'Date Drivers'!$C$1:$H$47,20)","v":"5A"},{"$f":"HLOOKUP('Date Drivers'!$B$1,'Date Drivers'!$C$1:$H$47,25)","v":"24 - 27 Vdc"},{"$f":"HLOOKUP('Date Drivers'!$B$1,'Date Drivers'!$C$1:$H$47,26)","v":"30 - 34 Vdc"},{"$f":"HLOOKUP('Date Drivers'!$B$1,'Date Drivers'!$C$1:$H$47,27)","v":"48 - 54 Vdc"},{"$f":"HLOOKUP('Date Drivers'!$B$1,'Date Drivers'!$C$1:$H$47,28)","v":"110 - 125 Vdc"},{"$f":"HLOOKUP('Date Drivers'!$B$1,'Date Drivers'!$C$1:$H$47,15)","v":"A"},{"$f":"HLOOKUP('Date Drivers'!$B$1,'Date Drivers'!$C$1:$H$47,16)","v":"B"},{"$f":"HLOOKUP('Date Drivers'!$B$1,'Date Drivers'!$C$1:$H$47,21)","v":"B"},{"$f":"HLOOKUP('Date Drivers'!$B$1,'Date Drivers'!$C$1:$H$47,22)","v":"C"},{"$f":"HLOOKUP('Date Drivers'!$B$1,'Date Drivers'!$C$1:$H$47,23)","v":"D"},{"$f":"HLOOKUP('Date Drivers'!$B$1,'Date Drivers'!$C$1:$H$47,13)","v":"50 Hz"},{"$f":"HLOOKUP('Date Drivers'!$B$1,'Date Drivers'!$C$1:$H$47,14)","v":"60 Hz"},{"$f":"HLOOKUP('Date Drivers'!$B$1,'Date Drivers'!$C$1:$H$47,18)","v":"1A"},{"$f":"HLOOKUP('Date Drivers'!$B$1,'Date Drivers'!$C$1:$H$47,19)","v":"2A"},{"$f":"HLOOKUP('Date Drivers'!$B$1,'Date Drivers'!$C$1:$H$47,20)","v":"5A"},{"$f":"HLOOKUP('Date Drivers'!$B$1,'Date Drivers'!$C$1:$H$47,25)","v":"24 - 27 Vdc"},{"$f":"HLOOKUP('Date Drivers'!$B$1,'Date Drivers'!$C$1:$H$47,26)","v":"30 - 34 Vdc"},{"$f":"HLOOKUP('Date Drivers'!$B$1,'Date Drivers'!$C$1:$H$47,27)","v":"48 - 54 Vdc"},{"$f":"HLOOKUP('Date Drivers'!$B$1,'Date Drivers'!$C$1:$H$47,28)","v":"110 - 125 Vdc"}]
[2,{"$f":"HLOOKUP('Date Drivers'!$B$1,'Date Drivers'!$C$1:$H$99,32)","v":"Non - Standard Version for Australia Only"},{"$f":"HLOOKUP('Date Drivers'!$B$1,'Date Drivers'!$C$1:$H$99,34)","v":2},{"$f":"HLOOKUP('Date Drivers'!$B$1,'Date Drivers'!$C$1:$H$47,13)","v":"50 Hz"},"60Hz NOT AVAILABLE",{"$f":"HLOOKUP('Date Drivers'!$B$1,'Date Drivers'!$C$1:$H$47,18)","v":"1A"},"2A NOT AVAILABLE",{"$f":"HLOOKUP('Date Drivers'!$B$1,'Date Drivers'!$C$1:$H$47,20)","v":"5A"},"24…27 Vdc NOT AVAILABLE","30…34 Vdc NOT AVAILABLE",{"$f":"HLOOKUP('Date Drivers'!$B$1,'Date Drivers'!$C$1:$H$47,27)","v":"48 - 54 Vdc"},{"$f":"HLOOKUP('Date Drivers'!$B$1,'Date Drivers'!$C$1:$H$47,28)","v":"110 - 125 Vdc"},{"$f":"HLOOKUP('Date Drivers'!$B$1,'Date Drivers'!$C$1:$H$47,15)","v":"A"},"*",{"$f":"HLOOKUP('Date Drivers'!$B$1,'Date Drivers'!$C$1:$H$47,21)","v":"B"},"*",{"$f":"HLOOKUP('Date Drivers'!$B$1,'Date Drivers'!$C$1:$H$47,23)","v":"D"},{"$f":"HLOOKUP('Date Drivers'!$B$1,'Date Drivers'!$C$1:$H$47,13)","v":"50 Hz"},"60Hz NOT AVAILABLE",{"$f":"HLOOKUP('Date Drivers'!$B$1,'Date Drivers'!$C$1:$H$47,18)","v":"1A"},"2A NOT AVAILABLE",{"$f":"HLOOKUP('Date Drivers'!$B$1,'Date Drivers'!$C$1:$H$47,20)","v":"5A"},"24…27 Vdc NOT AVAILABLE","30…34 Vdc NOT AVAILABLE","48…54 Vdc",{"$f":"HLOOKUP('Date Drivers'!$B$1,'Date Drivers'!$C$1:$H$47,28)","v":"110 - 125 Vdc"}]
[]
[null,{"$f":"B6*1000","v":1000}]
[null,{"$f":"B10*100","v":100}]
[null,{"$f":"B14*10","v":10}]
[null,{"$f":"B20","v":1}]
[null,{"$f":"SUM(B24:B27)","v":1111},1111,"0011"]
[null,null,1112,"****"]
[null,null,1121,"0261"]
[null,null,1122,"****"]
[null,null,1131,"0511"]
[null,null,1132,9002]
[null,null,1141,"0761"]
[null,null,1142,"9001"]
[null,null,1211,"0011"]
[null,null,1212,"****"]
[null,null,1221,"0261"]
[null,null,1222,"****"]
[null,null,1231,"0511"]
[null,null,1232,"****"]
[null,null,1241,"0761"]
[null,null,1242,"****"]
[null,null,1311,"0011"]
[null,null,1312,"****"]
[null,null,1321,"0261"]
[null,null,1322,"****"]
[null,null,1331,"0511"]
[null,null,1332,"9003"]
[null,null,1341,"0761"]
[null,null,1342,9002]
[null,null,2111,"0011"]
[null,null,2112,"****"]
[null,null,2121,"0261"]
[null,null,2122,"****"]
[null,null,2131,"0511"]
[null,null,2132,"****"]
[null,null,2141,"0761"]
[null,null,2142,"****"]
[null,null,2211,"0011"]
[null,null,2212,"****"]
[null,null,2221,"0261"]
[null,null,2222,"****"]
[null,null,2231,"0511"]
[null,null,2232,"****"]
[null,null,2241,"0761"]
[null,null,2242,"****"]
[null,null,2311,"0011"]
[null,null,2312,"****"]
[null,null,2321,"0261"]
[null,null,2322,"****"]
[null,null,2331,"0511"]
[null,null,2332,"****"]
[null,null,2341,"0761"]
[null,null,2342,"****"]
[]
[null,1]
[1,{"$f":"HLOOKUP('Date Drivers'!$B$1,'Date Drivers'!$C$1:$H$50,41)","v":"Post 16/09/96 (EMC)"},{"$f":"HLOOKUP('Date Drivers'!$B$1,'Date Drivers'!$C$1:$H$50,40)","v":"HN0068002"}]
[2]

{"sheet":"Date Drivers","index":4,"n_rows":41,"n_cols":8,"rows_kept":41,"cut":false,"hidden":true,"merged":[]}
["Key Date",{"$f":"IF(Configurator!$A$4=\"\",TODAY(),Configurator!$A$4)","v":"2018-07-12"},"1900-01-01","1987-07-01","1996-09-16","2000-04-01","2000-10-01","2004-11-01"]
[]
["Type of Relay",2,"Pilot Voltage Limited by Zener (Rented)","Pilot Voltage Limited by Zener (Rented)","Pilot Voltage Limited by Zener (Rented)","Pilot Voltage Limited by Zener (Rented)","Pilot Voltage Limited by Zener (Rented)","Pilot Voltage Limited by Zener (Rented)"]
[]
[]
[]
[]
["Case",1,"Midos Size6 (Yellow/Black) Case","Midos Size6 (Yellow/Black) Case","Midos Size6 (Yellow/Black) Case","Midos Size6 (Yellow/Black) Case","Midos Size6 (Blue/Grey) Case","Midos Size6 (Grey/Grey) Case"]
["Case",2," "," "," ","Midos Size6 (Blue/Grey) Case"," "," "]
[null,null,"F","F","F","F","N","V"]
[null,null,"F","F","F","N","N","V"]
[]
["Frequency",1,"50 Hz","50 Hz","50 Hz","50 Hz","50 Hz","50 Hz"]
[null,2,"60 Hz","60 Hz","60 Hz","60 Hz","60 Hz","60 Hz"]
[null,null,"A","A","A","A","A","A"]
[null,null,"B","B","B","B","B","B"]
[]
["Current Rating",1,"1A","1A","1A","1A","1A","1A"]
[null,2,"2A","2A","2A","2A","2A","2A"]
[null,3,"5A","5A","5A","5A","5A","5A"]
[null,null,"B","B","B","B","B","B"]
[null,null,"C","C","C","C","C","C"]
[null,null,"D","D","D","D","D","D"]
[]
["Auxiliary dc suppy rating",1,"24 - 27 Vdc","24 - 27 Vdc","24 - 27 Vdc","24 - 27 Vdc","24 - 27 Vdc","24 - 27 Vdc"]
[null,2,"30 - 34 Vdc","30 - 34 Vdc","30 - 34 Vdc","30 - 34 Vdc","30 - 34 Vdc","30 - 34 Vdc"]
[null,3,"48 - 54 Vdc","48 - 54 Vdc","48 - 54 Vdc","48 - 54 Vdc","48 - 54 Vdc","48 - 54 Vdc"]
[null,4,"110 - 125 Vdc","110 - 125 Vdc","110 - 125 Vdc","110 - 125 Vdc","110 - 125 Vdc","110 - 125 Vdc"]
[]
["Standard or Special Version:"]
["Standard",1,"Standard","Standard","Standard","Standard","Standard","Standard"]
["Non - Standard Version for Australia Only",2,"Non - Standard Version for Australia Only","Non - Standard Version for Australia Only","Non - Standard Version for Australia Only","Non - Standard Version for Australia Only","Non - Standard Version for Australia Only","Non - Standard Version for Australia Only"]
[null,null,1,1,1,1,1,1]
[null,null,2,2,2,2,2,2]
[]
[]
[]
["Design Suffix",1,"A","A","B","B","B","B"]
[]
["Optional Extras",1,"HN0068001","HN0068001","HN0068002","HN0068002","HN0068002","HN0068002"]
[null,null,"Pre 15/09/96 (NON EMC)","Pre 15/09/96 (NON EMC)","Post 16/09/96 (EMC)","Post 16/09/96 (EMC)","Post 16/09/96 (EMC)","Post 16/09/96 (EMC)"]

{"sheet":"Master Text","index":5,"n_rows":19,"n_cols":5,"rows_kept":19,"cut":false,"hidden":false,"merged":[]}
["THIS PRODUCT IS NOW OBSOLETE"]
[{"$f":"CONCATENATE(Configurator!C6,Configurator!D6,Configurator!E6,Configurator!F6,Configurator!G6,Configurator!H6,Configurator!I6,Configurator!J6,Configurator!K6)","v":"MBCI02V1AB0011B"}]
[]
["TRANSLAY `S' DIFFERENTIAL CURRENT OPERATED INSTANTANEOUS"]
["RELAY FOR USE WITH PRIVATE PILOTS."]
[{"$f":"VLOOKUP(DATABASE!$B$20,DATABASE!$A$21:$C$22,2)","v":"Standard"}]
["HOUSED IN A SIZE 6 CASE."]
[]
["C.T.SECONDARY          ",":","(In)",{"$f":"VLOOKUP(DATABASE!$B$10,DATABASE!$A$11:$B$13,2)","v":"1A"}]
["FREQUENCY                    ",":",null,{"$f":"VLOOKUP(DATABASE!$B$6,DATABASE!$A$7:$B$8,2)","v":"50 Hz"}]
["AUX.SUPPLY VOLTAGE                         ",":","(Vx)",{"$f":"VLOOKUP(DATABASE!$B$14,DATABASE!$A$15:$B$18,2)","v":"24 - 27 Vdc"}]
["EXT STABILISING RESISTOR          ",":",null,{"$f":"VLOOKUP(DATABASE!$B$10,DATABASE!$A$11:$E$13,5)","v":" 12.5 Ohms"}]
[]
[]
[]
[]
[null,null,"Version :","A","Re-formatted  02/02/2004  R J Williams"]
[null,null,null,"B","Grey Areva livery set as default effective 01/11/04"]
[null,null,null,"C","MBCI02 Obsoletion 10/07/2018- CID005422,  GE Publication No GER-4820"]

{"sheet":"Routing","index":6,"n_rows":33,"n_cols":5,"rows_kept":33,"cut":false,"hidden":true,"merged":[[1,1,1,2]]}
[]
[{"$f":"CONCATENATE(Configurator!C6,Configurator!D6,Configurator!E6,Configurator!F6,Configurator!G6,Configurator!H6,Configurator!I6,Configurator!J6,Configurator!K6)","v":"MBCI02V1AB0011B"},"Routing"]
[]
[null,"Operation reference 50000164"]
[]
[null,null,null,null,"Documents"]
[null,"Add Pre-production Ref. Op. Set:",null,50000031]
[]
[null,"Assemble Vent GJ0055001",null,"22.4 min"]
[]
[null,{"$f":"VLOOKUP(DATABASE!$B$10,DATABASE!$A$11:$G$13,6)","v":"Assemble & Wire (1 Amp)"},null,{"$f":"VLOOKUP(DATABASE!$B$10,DATABASE!$A$11:$G$13,7)","v":"122.6 min"},"02MBCI0202"]
[]
[null,"Product Check (Assy & Wiring)",null,"13.5 min"]
[]
[null,"Preparation for Test",null,"14.3 min","GJ0417018, GJ0428419"]
[]
[null,"Print Customer Special Labels",null,"0.6 min"]
[]
[null,"Check Case, Cover & Labels",null,"2.0 min"]
[]
[null,"Flash Test",null,"3.0 min"]
[]
[null,"Test",null,"55.0 min","07MBCI02"]
[]
[null,"Final Product Check",null,"2.0 min"]
[]
[null,"Primary Pack",null,"8.5 min","Inspection Char 4"]
[]
[]
[]
[null,"Wiring Schedule;",null,"02MBCI0202"]
[]
[null,"Test Specification ; ",null,"07MBCI02"]

{"sheet":"BOM","index":7,"n_rows":43,"n_cols":19,"rows_kept":43,"cut":false,"hidden":true,"merged":[[0,1,0,11]]}
["PCS MATERIAL MASTER","Requirements Key(s) / # of digit in model number",null,null,null,null,null,null,null,null,null,null,"Requirements Keys","Attribute Keys","NUMBER","DESCRIPTION","Drg Ref","Qty. Required","Qty. Required"]
[{"$f":"CONCATENATE(Configurator!C6,Configurator!D6,Configurator!E6,Configurator!F6,Configurator!G6,Configurator!H6,Configurator!I6,Configurator!J6,Configurator!K6)","v":"MBCI02V1AB0011B"},4,5,6,7,8,9,10,"11 - 14",15]
[null,null,null,null,{"$f":"MID($A$2,7,1)","v":"V"},null,null,null,null,null,null,null,{"$f":"E3","v":"V"},"F","GJ0052000","Final Assy Parts (Yellow / Black)"," ",1,{"$f":"IF(AND($M3<>\"\",$M3=$N3),$R3,\"\")","v":""}]
[null,null,null,null,{"$f":"MID($A$2,7,1)","v":"V"},null,null,null,null,null,null,null,{"$f":"E4","v":"V"},"N","GJ0052100","Final Assy Parts (Blue / Grey)"," ",1,""]
[null,null,null,null,{"$f":"MID($A$2,7,1)","v":"V"},null,null,null,null,null,null,null,{"$f":"E5","v":"V"},"V","GJ0052100","Final Assy Parts (Blue / Grey)"," ",1,1]
[null,null,null,null,null,null,null,{"$f":"MID($A$2,10,1)","v":"B"},null,null,null,null,{"$f":"H6","v":"B"},"B","GJ0053003","Assy Side Mounting Plate","Ref 29",1,1]
[null,null,null,null,null,null,null,{"$f":"MID($A$2,10,1)","v":"B"},null,null,null,null,{"$f":"H7","v":"B"},"D","GJ0053004","Assy Side Mounting Plate","Ref 29",1,""]
[null,null,null,null,null,null,null,{"$f":"MID($A$2,10,1)","v":"B"},null,null,null,null,{"$f":"H8","v":"B"},"C","GJ0053006","Assy Side Mounting Plate","Ref 29",1,""]
[null,null,null,null,null,null,null,null,{"$f":"MID($A$2,12,1)","v":"0"},null,null,null,{"$f":"I9","v":"0"},"9","GJ0053007","Assy Side Mounting Plate (Special for Australia)","Ref 29",1]
[null,null,null,null,null,null,null,null,{"$f":"MID($A$2,12,1)","v":"0"},null,null,null,{"$f":"I10","v":"0"},"9","GJ0053008","Assy Side Mounting Plate (Special for Australia)","Ref 29",1]
[null,null,null,null,null,null,null,null,null,null,null,null,null,null,"GJ0055001","Assy Ventilated Enclosure","Ref 35",1,1]
[null,null,null,null,{"$f":"MID($A$2,7,1)","v":"V"},null,null,null,null,null,null,null,{"$f":"E12","v":"V"},"F","GJ9101625","Handle Strip Label","Ref 12",1,{"$f":"IF(AND($M12<>\"\",$M12=$N12),$R12,\"\")","v":""}]
[null,null,null,null,{"$f":"MID($A$2,7,1)","v":"V"},null,null,null,null,null,null,null,{"$f":"E13","v":"V"},"F","GJ9120040","Label Type Ref"," ",1,""]
[null,null,null,null,null,null,null,null,null,null,null,null,null,null,"GJ9125001","Customer Label"," ",1,1]
[null,null,null,null,null,null,null,{"$f":"MID($A$2,10,1)","v":"B"},null,null,null,null,{"$f":"H15","v":"B"},"B","ST0311032","External Stabilising Resistor 12.5 Ohms"," ",1,1]
[null,null,null,null,null,null,null,{"$f":"MID($A$2,10,1)","v":"B"},null,null,null,null,{"$f":"H16","v":"B"},"C","ST0311024","External Stabilising Resistor 1.95 Ohms"," ",1,""]
[null,null,null,null,null,null,null,{"$f":"MID($A$2,10,1)","v":"B"},null,null,null,null,{"$f":"H17","v":"B"},"D","ST0311018","External Stabilising Resistor 0.48 Ohms"," ",1,""]
[null,null,null,null,{"$f":"MID($A$2,7,1)","v":"V"},null,null,null,null,null,null,null,{"$f":"E18","v":"V"},"F","GJ0034004","Case Assy (Yellow / Black)"," ",1,""]
[null,null,null,null,{"$f":"MID($A$2,7,1)","v":"V"},null,null,null,null,null,null,null,{"$f":"E19","v":"V"},"F","GJ0014009","Terminal Block"," ",1,""]
[null,null,null,null,{"$f":"MID($A$2,7,1)","v":"V"},null,null,null,null,null,null,null,{"$f":"E20","v":"V"},"N","GJ0428419","Assy Cover & Reset (Blue / Grey)"," ",1,""]
[null,null,null,null,{"$f":"MID($A$2,7,1)","v":"V"},null,null,null,null,null,null,null,{"$f":"E21","v":"V"},"V","GJ0428419","Assy Cover & Reset (Blue / Grey)"," ",1,1]
[null,null,null,null,{"$f":"MID($A$2,7,1)","v":"V"},null,null,null,null,null,null,null,{"$f":"E22","v":"V"},"F","GJ0028419","Assy Cover & Reset (Yellow / Black"," ",1,""]
[null,null,null,null,null,null,null,null,null,null,null,null," "," ","ZA0005060","Bagged Terminals"," ",1,1]
[null,null,null,null,{"$f":"MID($A$2,7,1)","v":"V"},null,null,null,null,null,null,null,{"$f":"E24","v":"V"},"F","ZA0005062","Bagged Fixings"," ",1,""]
[null,null,null,null,{"$f":"MID($A$2,7,1)","v":"V"},null,null,null,null,null,null,null,{"$f":"E25","v":"V"},"N","ZA0005106","Bagged Fixings"," ",1,""]
[null,null,null,null,{"$f":"MID($A$2,7,1)","v":"V"},null,null,null,null,null,null,null,{"$f":"E26","v":"V"},"V","ZA0005106","Bagged Fixings"," ",1,1]
[null,null,null,null,{"$f":"MID($A$2,7,1)","v":"V"},null,null,null,null,null,null,null,{"$f":"E27","v":"V"},"N","GJ0417108","Case Assy (Blue / Grey)"," ",1,""]
[null,null,null,null,{"$f":"MID($A$2,7,1)","v":"V"},null,null,null,null,null,null,null,{"$f":"E28","v":"V"},"V","GJ0417108","Case Assy (Blue / Grey)"," ",1,1]
[null,null,null,null,null,null,null,null,{"$f":"MID($A$2,12,1)","v":"0"},null,null,null,{"$f":"I29","v":"0"},"2","ZG1080001","Assy PCB - Dble Side Switching 30V","Ref 32",1,""]
[null,null,null,null,null,null,null,null,"0",null,null,null,{"$f":"I30","v":"0"},"5","ZG1080002","Assy PCB - Dble Side Switching 50V","Ref 32",1,""]
[null,null,null,null,null,null,null,null,"0",null,null,null,{"$f":"I31","v":"0"},"7","ZG1080003","Assy PCB - Dble Side Switching 110V","Ref 32",1,""]
[null,null,null,null,null,null,null,null,"0",null,null,null,{"$f":"I32","v":"0"},"0","ZG1080004","Assy PCB - Dble Side Switching 24V","Ref 32",1,1]
[null,null,null,null,null,null,{"$f":"MID($A$2,9,1)","v":"A"},null,"0",null,null,null,{"$f":"CONCATENATE(G33,I33)","v":"A0"},"A2","ZJ0338001","ASSY PCB - TRANS DIFF 30V 50HZ","Ref 30",1,""]
[null,null,null,null,null,null,"A",null,"0",null,null,null,"A0","A5","ZJ0338002","ASSY PCB - TRANS DIFF 50V 50HZ ","Ref 30",1,""]
[null,null,null,null,null,null,"A",null,"0",null,null,null,"A0","A6","ZJ0338003","ASSY PCB - TRANS DIFF 125V 50HZ","Ref 30",1,""]
[null,null,null,null,null,null,"A",null,"0",null,null,null,"A0","B2","ZJ0338004","ASSY PCB - TRANS DIFF 30V 60HZ","Ref 30",1,""]
[null,null,null,null,null,null,"A",null,"0",null,null,null,"A0","B5","ZJ0338005","ASSY PCB - TRANS DIFF 50V 60HZ","Ref 30",1,""]
[null,null,null,null,null,null,"A",null,"0",null,null,null,"A0","B7","ZJ0338006","ASSY PCB - TRANS DIFF 125V 60HZ","Ref 30",1,""]
[null,null,null,null,null,null,"A",null,"0",null,null,null,"A0","A0","ZJ0338007","ASSY PCB - TRANS DIFF 24V 50HZ","Ref 30",1,1]
[null,null,null,null,null,null,null,null,null,null,null,null,null,null,"ZA0005095","External Resistor Adjuster Clip"," ",1,1]
[null,null,null,null,null,null,null,null,null,null,null,null,null,null,"ZB9128040","Push-on Terminal","Ref 71",1,1]
[null,null,null,null,null,null,null,null,null,null,null,null,null,null,"ZB9128041","Push-on Terminal","Ref 70",1,1]
[null,null,null,null,null,null,null,null,null,null,null,null,null,null,null,null,null,null,1]

{"sheet":"Documents","index":8,"n_rows":12,"n_cols":4,"rows_kept":12,"cut":false,"hidden":true,"merged":[[1,1,1,3]]}
[]
[{"$f":"CONCATENATE(Configurator!C6,Configurator!D6,Configurator!E6,Configurator!F6,Configurator!G6,Configurator!H6,Configurator!I6,Configurator!J6,Configurator!K6)","v":"MBCI02V1AB0011B"},"Documents"]
[]
[]
["Wiring / Circuit Diagram",":  ","10MBCI0202"]
[]
["Outline",":","GJ0025 Sheet 4"]
[]
["Out line Ext. Components;"]
["Stabilising Resistor",": ","ST0333(BRC)"]
[]
["Version ",":","A","Re-formatted  23/02/2004  R J Williams"]